fUSD/lending_fUSD_20241225
["ID","MTS","AMOUNT","RATE_DAILY","PERIOD"]
[346617108,1735127451432,-500.0,0.00011558,2]
[346617109,1735127451442,-500.0,0.00011558,2]
[346617110,1735127451451,-500.0,0.00011558,2]
[346617111,1735127451460,-500.0,0.00011558,2]
[346617112,1735127451470,-500.0,0.00011558,2]
[346617113,1735127451479,-3239.46,0.00011558,2]
[346617114,1735127451491,-500.0,0.00011558,2]
[346617115,1735127451501,-500.0,0.00011558,2]
[346617116,1735127451510,-684.04,0.00011558,2]
[346617117,1735127451519,-500.0,0.00011559,2]
[346617118,1735127451528,-500.0,0.00011559,2]
[346617119,1735127451537,-500.0,0.00011559,2]
[346617120,1735127451546,-500.0,0.00011559,2]
[346617121,1735127451555,-500.0,0.00011559,2]
[346617122,1735127451564,-538.33,0.00011559,2]
[346617123,1735127451575,-500.0,0.00011559,2]
[346617124,1735127451584,-683.15,0.00011559,2]
[346617125,1735127451594,-510.99,0.00011559,2]
[346617126,1735127451604,-1663.82,0.00011559,2]
[346617127,1735127451614,-609.52,0.00011559,2]
[346617128,1735127451624,-1003.15,0.00011559,2]
[346617129,1735127451633,-500.0,0.00011559,2]
[346617130,1735127451642,-500.0,0.00011559,2]
[346617131,1735127451653,-1248.44,0.00011559,2]
[346617132,1735127451662,-500.0,0.00011559,2]
[346617133,1735127451672,-500.0,0.00011559,2]
[346617134,1735127451681,-638.36,0.00011559,2]
[346617135,1735127451690,-500.0,0.00011559,2]
[346617136,1735127451700,-500.0,0.00011559,2]
[346617137,1735127451709,-203.97,0.00011561,2]
[346617138,1735127451718,-202.84,0.00011561,2]
[346617139,1735127451728,-203.74,0.00011561,2]
[346617140,1735127451741,-500.0,0.00011612,2]
[346617141,1735127451752,-500.0,0.00011612,2]
[346617142,1735127451762,-500.0,0.00011612,2]
[346617143,1735127451772,-500.0,0.00011612,2]
[346617144,1735127451781,-500.0,0.00011612,2]
[346617145,1735127451791,-500.0,0.00011612,2]
[346617146,1735127451800,-500.0,0.00011612,2]
[346617147,1735127451808,-500.0,0.00011612,2]
[346617148,1735127451818,-500.0,0.00011612,2]
[346617149,1735127451827,-500.0,0.00011612,2]
[346617150,1735127451837,-500.0,0.00011612,2]
[346617151,1735127451846,-500.0,0.00011612,2]
[346617152,1735127451855,-928.86,0.00011612,2]
[346617153,1735127451864,-833.33,0.00011612,2]
[346617154,1735127451874,-500.0,0.00011612,2]
[346617155,1735127451883,-500.0,0.00011612,2]
[346617156,1735127451892,-896.31,0.00011612,2]
[346617157,1735127451902,-630.10813059,0.00011612,2]
[346617158,1735127451911,-2655.7,0.00011612,2]
[346617159,1735127451920,-757.29,0.00011612,2]
[346617160,1735127451929,-500.0,0.00011612,2]
[346617161,1735127451938,-500.0,0.00011612,2]
[346617162,1735127451948,-4923.35,0.00011612,2]
[346617163,1735127451957,-572.89,0.00011612,2]
[346617164,1735127451966,-500.0,0.00011612,2]
[346617165,1735127451975,-500.0,0.00011612,2]
[346617166,1735127451986,-525.33,0.00011612,2]
[346617167,1735127451997,-543.83,0.00011612,2]
[346617168,1735127452007,-243.094773,0.00011612,2]
[346617169,1735127452017,-556.00605295,0.00011612,2]
[346617170,1735127452026,-632.78,0.00011612,2]
[346617171,1735127452036,-500.0,0.00011612,2]
[346617172,1735127452045,-500.0,0.00011612,2]
[346617173,1735127452054,-219.681786,0.00011612,2]
[346617174,1735127452063,-1569.97,0.00011612,2]
[346617175,1735127452073,-832.91,0.00011612,2]
[346617176,1735127452083,-500.0,0.00011612,2]
[346617177,1735127452092,-500.0,0.00011612,2]
[346617178,1735127452101,-500.0,0.00011612,2]
[346617179,1735127452110,-500.0,0.00011612,2]
[346617180,1735127452120,-500.0,0.00011612,2]
[346617181,1735127452129,-1793.93,0.00011612,2]
[346617182,1735127452139,-1761.25,0.00011612,2]
[346617183,1735127452204,-500.0,0.00011612,2]
[346617184,1735127452213,-610.53,0.00011612,2]
[346617185,1735127452223,-671.69,0.00011612,2]
[346617186,1735127452233,-500.0,0.00011612,2]
[346617187,1735127452242,-500.0,0.00011612,2]
[346617188,1735127452251,-500.0,0.00011612,2]
[346617189,1735127452260,-2899.28,0.00011612,2]
[346617190,1735127452270,-500.0,0.00011612,2]
[346617191,1735127452279,-500.0,0.00011612,2]
[346617192,1735127452287,-548.76,0.00011612,2]
[346617193,1735127452296,-2172.9,0.00011612,2]
[346617194,1735127452306,-500.0,0.00011612,2]
[346617195,1735127452315,-500.0,0.00011612,2]
[346617196,1735127452324,-500.0,0.00011612,2]
[346617197,1735127452333,-500.0,0.00011612,2]
[346617198,1735127452341,-595.01456131,0.00011612,2]
[346617199,1735127452350,-500.0,0.00011612,2]
[346617200,1735127452359,-1309.3,0.00011612,2]
[346617201,1735127452368,-500.0,0.00011612,2]
[346617202,1735127452376,-759.69,0.00011612,2]
[346617203,1735127452385,-500.0,0.00011612,2]
[346617204,1735127452394,-6709.46,0.00011612,2]
[346617205,1735127452403,-500.0,0.00011612,2]
[346617206,1735127452412,-500.0,0.00011612,2]
[346617207,1735127452421,-500.0,0.00011612,2]
[346617208,1735127452430,-500.0,0.00011612,2]
[346617209,1735127452440,-500.0,0.00011612,2]
[346617210,1735127452449,-500.0,0.00011612,2]
[346617211,1735127452458,-500.0,0.00011612,2]
[346617212,1735127452467,-500.0,0.00011612,2]
[346617213,1735127452476,-500.0,0.00011612,2]
[346617214,1735127452486,-500.0,0.00011612,2]
[346617215,1735127452495,-500.0,0.00011612,2]
[346617216,1735127452505,-500.0,0.00011612,2]
[346617217,1735127452514,-500.0,0.00011612,2]
[346617218,1735127452524,-500.0,0.00011722,2]
[346617219,1735127452533,-500.0,0.00011722,2]
[346617220,1735127452542,-500.0,0.00011722,2]
[346617221,1735127452551,-500.0,0.00011722,2]
[346617222,1735127452560,-548.72,0.00011722,2]
[346617223,1735127452571,-500.0,0.00011722,2]
[346617224,1735127452584,-500.0,0.00011722,2]
[346617225,1735127452593,-500.0,0.00011722,2]
[346617226,1735127452602,-500.0,0.00011722,2]
[346617227,1735127452612,-500.0,0.00011722,2]
[346617228,1735127452623,-500.0,0.00011722,2]
[346617229,1735127452632,-500.0,0.00011722,2]
[346617230,1735127452642,-500.0,0.00011722,2]
[346617231,1735127452652,-516.07,0.00011722,2]
[346617232,1735127452662,-500.0,0.00011722,2]
[346617233,1735127452673,-500.0,0.00011722,2]
[346617234,1735127452683,-500.0,0.00011722,2]
[346617235,1735127452693,-500.0,0.00011722,2]
[346617236,1735127452702,-500.0,0.00011722,2]
[346617237,1735127452711,-629.62,0.00011722,2]
[346617238,1735127452720,-500.0,0.00011722,2]
[346617239,1735127452729,-227.53035931,0.00011722,2]
[346617240,1735127452740,-500.0,0.00011722,2]
[346617241,1735127452750,-500.82,0.00011722,2]
[346617242,1735127452760,-500.0,0.00011722,2]
[346617243,1735127452769,-398.1957074,0.00011722,2]
[346617244,1735127452779,-868.96,0.00011722,2]
[346617245,1735127452788,-500.0,0.00011722,2]
[346617246,1735127452797,-614.43,0.00011722,2]
[346617247,1735127452806,-500.0,0.00011722,2]
[346617248,1735127452816,-500.0,0.00011722,2]
[346617249,1735127452826,-500.0,0.00011722,2]
[346617250,1735127452835,-500.0,0.00011722,2]
[346617251,1735127452845,-500.0,0.00011722,2]
[346617252,1735127452854,-500.0,0.00011722,2]
[346617253,1735127452863,-500.0,0.00011722,2]
[346617254,1735127452874,-500.0,0.00011722,2]
[346617255,1735127452883,-500.0,0.00011722,2]
[346617256,1735127452893,-500.0,0.00011722,2]
[346617257,1735127452903,-500.0,0.00011722,2]
[346617258,1735127452912,-536.85,0.00011722,2]
[346617259,1735127452922,-500.0,0.00011722,2]
[346617260,1735127452931,-500.0,0.00011722,2]
[346617261,1735127452940,-500.0,0.00011722,2]
[346617262,1735127452949,-500.0,0.00011722,2]
[346617263,1735127452959,-500.0,0.00011722,2]
[346617264,1735127452968,-500.0,0.00011722,2]
[346617265,1735127452977,-500.0,0.00011722,2]
[346617266,1735127452987,-653.26,0.00011722,2]
[346617267,1735127452996,-500.0,0.00011722,2]
[346617268,1735127453005,-500.0,0.00011722,2]
[346617269,1735127453015,-500.0,0.00011722,2]
[346617270,1735127453025,-500.0,0.00011722,2]
[346617271,1735127453034,-500.0,0.00011722,2]
[346617272,1735127453043,-811.95,0.00011722,2]
[346617273,1735127453053,-660.43,0.00011722,2]
[346617274,1735127453062,-500.0,0.00011722,2]
[346617275,1735127453071,-853.07,0.00011722,2]
[346617276,1735127453081,-882.1,0.00011722,2]
[346617277,1735127453090,-500.0,0.00011722,2]
[346617278,1735127453100,-1100.96,0.00011722,2]
[346617279,1735127453109,-500.0,0.00011722,2]
[346617280,1735127453119,-635.49,0.00011722,2]
[346617281,1735127453128,-500.0,0.00011722,2]
[346617282,1735127453138,-659.11,0.00011722,2]
[346617283,1735127453147,-2784.47,0.00011722,2]
[346617284,1735127453156,-560.83,0.00011722,2]
[346617285,1735127453166,-529.17,0.00011722,2]
[346617286,1735127453176,-1887.14,0.00011722,2]
[346617287,1735127453185,-500.0,0.00011722,2]
[346617288,1735127453197,-500.0,0.00011722,2]
[346617289,1735127453207,-1073.5,0.00011722,2]
[346617290,1735127453218,-923.69,0.00011722,2]
[346617291,1735127453227,-500.0,0.00011722,2]
[346617292,1735127453238,-871.16,0.00011722,2]
[346617293,1735127453247,-871.29,0.00011722,2]
[346617294,1735127453258,-997.59,0.00011722,2]
[346617295,1735127453268,-500.0,0.00011722,2]
[346617296,1735127453276,-500.0,0.00011722,2]
[346617297,1735127453286,-500.0,0.00011722,2]
[346617298,1735127453295,-1899.52,0.00011722,2]
[346617299,1735127453304,-1011.4,0.00011722,2]
[346617300,1735127453313,-500.0,0.00011722,2]
[346617301,1735127453323,-1356.28,0.00011722,2]
[346617302,1735127453332,-612.88,0.00011722,2]
[346617303,1735127453341,-500.0,0.00011722,2]
[346617304,1735127453351,-500.0,0.00011722,2]
[346617305,1735127453360,-1419.61,0.00011722,2]
[346617306,1735127453370,-1207.47,0.00011722,2]
[346617307,1735127453379,-500.0,0.00011722,2]
[346617308,1735127453389,-500.0,0.00011722,2]
[346617309,1735127453398,-500.0,0.00011722,2]
[346617310,1735127453407,-543.33,0.00011722,2]
[346617311,1735127453417,-500.0,0.00011722,2]
[346617312,1735127453426,-500.0,0.00011722,2]
[346617313,1735127453435,-500.0,0.00011722,2]
[346617314,1735127453444,-500.0,0.00011722,2]
[346617315,1735127453454,-500.0,0.00011722,2]
[346617316,1735127453463,-500.0,0.00011722,2]
[346617317,1735127453472,-500.0,0.00011722,2]
[346617318,1735127453482,-500.0,0.00011722,2]
[346617319,1735127453491,-500.0,0.00011722,2]
[346617320,1735127453500,-824.81,0.00011722,2]
[346617321,1735127453510,-500.0,0.00011722,2]
[346617322,1735127453519,-1040.1,0.00011722,2]
[346617323,1735127453529,-500.0,0.00011722,2]
[346617324,1735127453538,-872.12,0.00011722,2]
[346617325,1735127453548,-584.82,0.00011722,2]
[346617326,1735127453558,-177.1280077,0.00011732,2]
[346617327,1735127453569,-594.0,0.00011735,2]
[346617328,1735127453583,-479.01587159,0.00011756,2]
[346617329,1735127453592,-1000.0,0.0001177,2]
[346617330,1735127453601,-707.03637596,0.0001177,2]
[346617331,1735127453610,-257.99449987,0.00011781,7]
[346617332,1735127453621,-203.26,0.00011786,2]
[346617333,1735127453630,-500.0,0.00011831,2]
[346617334,1735127453639,-742.98,0.00011831,2]
[346617335,1735127453649,-992.77,0.00011831,2]
[346617336,1735127453658,-2012.95,0.00011831,2]
[346617337,1735127453667,-1891.68,0.00011831,2]
[346617338,1735127453677,-16159.23,0.00011831,2]
[346617339,1735127453686,-1453.31,0.00011831,2]
[346617340,1735127453696,-761.63,0.00011831,2]
[346617341,1735127453706,-545.79,0.00011831,2]
[346617342,1735127453716,-1354.29,0.00011831,2]
[346617343,1735127453725,-14537.19,0.00011831,2]
[346617344,1735127453735,-500.0,0.00011831,2]
[346617345,1735127453744,-1480.31,0.00011831,2]
[346617346,1735127453754,-1290.32,0.00011831,2]
[346617347,1735127453763,-596.39,0.00011831,2]
[346617348,1735127453772,-2589.36,0.00011831,2]
[346617349,1735127453782,-500.0,0.00011831,2]
[346617350,1735127453791,-500.0,0.00011831,2]
[346617351,1735127453800,-1000.0,0.00011831,2]
[346617352,1735127453809,-1079.04,0.00011831,2]
[346617353,1735127453818,-656.4,0.00011831,2]
[346617354,1735127453828,-500.0,0.00011832,2]
[346617355,1735127453837,-500.0,0.00011832,2]
[346617356,1735127453846,-635.50224995,0.00011832,2]
[346617357,1735127453856,-520.55,0.00011832,2]
[346617358,1735127453865,-500.0,0.00011832,2]
[346617359,1735127453874,-500.0,0.00011832,2]
[346617360,1735127453884,-500.0,0.00011832,2]
[346617361,1735127453894,-500.0,0.00011832,2]
[346617362,1735127453903,-563.72,0.00011832,2]
[346617363,1735127453912,-500.0,0.00011832,2]
[346617364,1735127453921,-500.0,0.00011832,2]
[346617365,1735127453931,-500.0,0.00011832,2]
[346617366,1735127453940,-500.0,0.00011832,2]
[346617367,1735127453949,-500.0,0.00011832,2]
[346617368,1735127453958,-500.0,0.00011832,2]
[346617369,1735127453968,-500.0,0.00011832,2]
[346617370,1735127453977,-500.0,0.00011832,2]
[346617371,1735127453986,-500.0,0.00011832,2]
[346617372,1735127453995,-553.83,0.00011832,2]
[346617373,1735127454005,-500.0,0.00011832,2]
[346617374,1735127454014,-500.0,0.00011832,2]
[346617375,1735127454023,-613.47,0.00011832,2]
[346617376,1735127454032,-595.49,0.00011832,2]
[346617377,1735127454041,-500.0,0.00011832,2]
[346617378,1735127454051,-500.0,0.00011832,2]
[346617379,1735127454060,-500.0,0.00011832,2]
[346617380,1735127454069,-500.0,0.00011832,2]
[346617381,1735127454078,-1086.12,0.00011832,2]
[346617382,1735127454088,-500.0,0.00011832,2]
[346617383,1735127454097,-705.77,0.00011832,2]
[346617384,1735127454106,-500.0,0.00011832,2]
[346617385,1735127454116,-383.79397926,0.00011832,2]
[346617386,1735127454125,-500.0,0.00011832,2]
[346617387,1735127454135,-500.0,0.00011832,2]
[346617388,1735127454144,-573.15,0.00011832,2]
[346617389,1735127454154,-500.0,0.00011832,2]
[346617390,1735127454164,-500.0,0.00011832,2]
[346617391,1735127454173,-500.0,0.00011832,2]
[346617392,1735127454183,-500.0,0.00011832,2]
[346617393,1735127454192,-500.0,0.00011832,2]
[346617394,1735127454201,-500.0,0.00011832,2]
[346617395,1735127454211,-500.0,0.00011832,2]
[346617396,1735127454219,-500.0,0.00011832,2]
[346617397,1735127454229,-500.0,0.00011832,2]
[346617398,1735127454239,-500.0,0.00011832,2]
[346617399,1735127454248,-500.0,0.00011832,2]
[346617400,1735127454257,-500.0,0.00011832,2]
[346617401,1735127454266,-500.0,0.00011832,2]
[346617402,1735127454275,-500.0,0.00011832,2]
[346617403,1735127454285,-500.0,0.00011832,2]
[346617404,1735127454295,-652.22,0.00011832,2]
[346617405,1735127454305,-500.0,0.00011832,2]
[346617406,1735127454314,-500.0,0.00011832,2]
[346617407,1735127454324,-647.3,0.00011832,2]
[346617408,1735127454334,-500.0,0.00011832,2]
[346617409,1735127454343,-971.03,0.00011832,2]
[346617410,1735127454352,-500.0,0.00011832,2]
[346617411,1735127454361,-500.0,0.00011832,2]
[346617412,1735127454371,-500.0,0.00011832,2]
[346617413,1735127454380,-500.0,0.00011832,2]
[346617414,1735127454390,-608.5,0.00011832,2]
[346617415,1735127454400,-500.0,0.00011832,2]
[346617416,1735127454409,-500.0,0.00011832,2]
[346617417,1735127454419,-500.0,0.00011832,2]
[346617418,1735127454428,-500.0,0.00011832,2]
[346617419,1735127454438,-500.0,0.00011832,2]
[346617420,1735127454447,-548.75,0.00011832,2]
[346617421,1735127454458,-500.0,0.00011832,2]
[346617422,1735127454467,-500.0,0.00011832,2]
[346617423,1735127454476,-500.0,0.00011832,2]
[346617424,1735127454487,-535.06,0.00011832,2]
[346617425,1735127454496,-500.0,0.00011832,2]
[346617426,1735127454505,-500.0,0.00011832,2]
[346617427,1735127454515,-500.0,0.00011832,2]
[346617428,1735127454524,-500.0,0.00011832,2]
[346617429,1735127454533,-537.48,0.00011832,2]
[346617430,1735127454543,-500.0,0.00011832,2]
[346617431,1735127454552,-509.17,0.00011832,2]
[346617432,1735127454562,-500.0,0.00011832,2]
[346617433,1735127454573,-500.0,0.00011832,2]
[346617434,1735127454583,-500.0,0.00011832,2]
[346617435,1735127454592,-500.0,0.00011832,2]
[346617436,1735127454601,-500.0,0.00011832,2]
[346617437,1735127454611,-560.69,0.00011832,2]
[346617438,1735127454621,-500.0,0.00011832,2]
[346617439,1735127454631,-500.0,0.00011832,2]
[346617440,1735127454641,-840.12,0.00011832,2]
[346617441,1735127454651,-500.0,0.00011832,2]
[346617442,1735127454660,-500.0,0.00011832,2]
[346617443,1735127454670,-500.0,0.00011832,2]
[346617444,1735127454679,-500.0,0.00011832,2]
[346617445,1735127454688,-500.0,0.00011832,2]
[346617446,1735127454698,-500.0,0.00011832,2]
[346617447,1735127454708,-693.24,0.00011832,2]
[346617448,1735127454718,-500.0,0.00011832,2]
[346617449,1735127454728,-500.0,0.00011832,2]
[346617450,1735127454737,-629.87,0.00011832,2]
[346617451,1735127454747,-518.66510487,0.00011832,2]
[346617452,1735127454757,-816.1,0.00011832,2]
[346617453,1735127454767,-500.0,0.00011832,2]
[346617454,1735127454776,-776.37,0.00011832,2]
[346617455,1735127454786,-500.0,0.00011832,2]
[346617456,1735127454795,-500.0,0.00011832,2]
[346617457,1735127454805,-500.0,0.00011832,2]
[346617458,1735127454814,-500.0,0.00011832,2]
[346617459,1735127454823,-511.56868295,0.00011832,2]
[346617460,1735127454833,-506.99,0.00011832,2]
[346617461,1735127454842,-500.0,0.00011832,2]
[346617462,1735127454852,-500.0,0.00011832,2]
[346617463,1735127454862,-719.32,0.00011832,2]
[346617464,1735127454872,-500.0,0.00011832,2]
[346617465,1735127454882,-503.97,0.00011832,2]
[346617466,1735127454891,-500.0,0.00011832,2]
[346617467,1735127454902,-500.0,0.00011832,2]
[346617468,1735127454912,-500.0,0.00011832,2]
[346617469,1735127454921,-799.41,0.00011832,2]
[346617470,1735127454931,-500.0,0.00011832,2]
[346617471,1735127454940,-500.0,0.00011832,2]
[346617472,1735127454950,-828.69,0.00011832,2]
[346617473,1735127454960,-1353.54,0.00011832,2]
[346617474,1735127454970,-500.0,0.00011832,2]
[346617475,1735127454979,-500.0,0.00011832,2]
[346617476,1735127454989,-500.0,0.00011832,2]
[346617477,1735127454999,-883.71,0.00011832,2]
[346617478,1735127455008,-500.0,0.00011832,2]
[346617479,1735127455018,-500.0,0.00011832,2]
[346617480,1735127455028,-871.34,0.00011832,2]
[346617481,1735127455037,-500.0,0.00011832,2]
[346617482,1735127455046,-500.0,0.00011832,2]
[346617483,1735127455056,-500.0,0.00011832,2]
[346617484,1735127455065,-500.0,0.00011832,2]
[346617485,1735127455075,-500.0,0.00011832,2]
[346617486,1735127455085,-564.78,0.00011832,2]
[346617487,1735127455094,-500.0,0.00011832,2]
[346617488,1735127455104,-500.0,0.00011832,2]
[346617489,1735127455113,-2087.65,0.00011832,2]
[346617490,1735127455122,-500.0,0.00011832,2]
[346617491,1735127455132,-500.0,0.00011832,2]
[346617492,1735127455142,-500.0,0.00011832,2]
[346617493,1735127455151,-500.0,0.00011832,2]
[346617494,1735127455161,-500.0,0.00011832,2]
[346617495,1735127455171,-765.7,0.00011832,2]
[346617496,1735127455180,-500.0,0.00011832,2]
[346617497,1735127455190,-500.0,0.00011832,2]
[346617498,1735127455200,-500.0,0.00011832,2]
[346617499,1735127455210,-500.0,0.00011832,2]
[346617500,1735127455220,-500.0,0.00011832,2]
[346617501,1735127455231,-565.7068587,0.00011832,2]
[346617502,1735127455243,-500.0,0.00011832,2]
[346617503,1735127455252,-500.0,0.00011832,2]
[346617504,1735127455262,-500.0,0.00011832,2]
[346617505,1735127455271,-500.0,0.00011832,2]
[346617506,1735127455281,-500.0,0.00011832,2]
[346617507,1735127455291,-500.0,0.00011832,2]
[346617508,1735127455300,-877.6,0.00011832,2]
[346617509,1735127455309,-500.0,0.00011832,2]
[346617510,1735127455319,-500.0,0.00011832,2]
[346617511,1735127455328,-500.0,0.00011832,2]
[346617512,1735127455337,-960.19,0.00011832,2]
[346617513,1735127455347,-3471.41,0.00011832,2]
[346617514,1735127455356,-500.0,0.00011832,2]
[346617515,1735127455366,-500.0,0.00011832,2]
[346617516,1735127455375,-566.44,0.00011832,2]
[346617517,1735127455384,-500.0,0.00011832,2]
[346617518,1735127455394,-600.93550649,0.00011832,2]
[346617519,1735127455404,-770.63,0.00011832,2]
[346617520,1735127455413,-1343.6,0.00011832,2]
[346617521,1735127455422,-500.0,0.00011832,2]
[346617522,1735127455433,-680.0,0.00011832,2]
[346617523,1735127455442,-1183.51,0.00011832,2]
[346617524,1735127455451,-500.0,0.00011832,2]
[346617525,1735127455461,-500.0,0.00011832,2]
[346617526,1735127455470,-1182.22,0.00011832,2]
[346617527,1735127455479,-670.59,0.00011832,2]
[346617528,1735127455490,-500.0,0.00011832,2]
[346617529,1735127455500,-500.0,0.00011832,2]
[346617530,1735127455509,-500.0,0.00011832,2]
[346617531,1735127455519,-5360.85,0.00011832,2]
[346617532,1735127455528,-576.57,0.00011832,2]
[346617533,1735127455538,-500.0,0.00011832,2]
[346617534,1735127455550,-500.0,0.00011832,2]
[346617535,1735127455558,-1223.6,0.00011832,2]
[346617536,1735127455568,-500.0,0.00011832,2]
[346617537,1735127455580,-500.0,0.00011832,2]
[346617538,1735127455589,-500.0,0.00011832,2]
[346617539,1735127455599,-563.31,0.00011832,2]
[346617540,1735127455609,-500.0,0.00011832,2]
[346617541,1735127455619,-500.0,0.00011832,2]
[346617542,1735127455628,-500.0,0.00011832,2]
[346617543,1735127455637,-500.0,0.00011832,2]
[346617544,1735127455647,-500.0,0.00011832,2]
[346617545,1735127455656,-500.0,0.00011832,2]
[346617546,1735127455666,-3239.46,0.00011832,2]
[346617547,1735127455675,-500.0,0.00011832,2]
[346617548,1735127455684,-500.0,0.00011832,2]
[346617549,1735127455693,-684.04,0.00011832,2]
[346617550,1735127455702,-500.0,0.00011833,2]
[346617551,1735127455711,-500.0,0.00011833,2]
[346617552,1735127455720,-500.0,0.00011833,2]
[346617553,1735127455729,-500.0,0.00011833,2]
[346617554,1735127455740,-500.0,0.00011833,2]
[346617555,1735127455749,-538.33,0.00011833,2]
[346617556,1735127455758,-500.0,0.00011833,2]
[346617557,1735127455768,-683.15,0.00011833,2]
[346617558,1735127455777,-510.99,0.00011833,2]
[346617559,1735127455786,-1663.82,0.00011833,2]
[346617560,1735127455795,-609.52,0.00011833,2]
[346617561,1735127455804,-1003.15,0.00011833,2]
[346617562,1735127455813,-500.0,0.00011833,2]
[346617563,1735127455823,-500.0,0.00011833,2]
[346617564,1735127455832,-1248.44,0.00011833,2]
[346617565,1735127455841,-500.0,0.00011833,2]
[346617566,1735127455851,-500.0,0.00011833,2]
[346617567,1735127455860,-638.36,0.00011833,2]
[346617568,1735127455869,-500.0,0.00011833,2]
[346617569,1735127455880,-500.0,0.00011833,2]
[346617570,1735127455890,-500.0,0.00011876,2]
[346617571,1735127455899,-2300.0,0.00011876,2]
[346617572,1735127455909,-500.0,0.00011886,2]
[346617573,1735127455918,-500.0,0.00011886,2]
[346617574,1735127455928,-500.0,0.00011886,2]
[346617575,1735127455938,-500.0,0.00011886,2]
[346617576,1735127455947,-500.0,0.00011886,2]
[346617577,1735127455957,-500.0,0.00011886,2]
[346617578,1735127455967,-493.9804677,0.00011886,2]
[346617579,1735127455976,-500.0,0.00011886,2]
[346617580,1735127455986,-500.0,0.00011886,2]
[346617581,1735127455995,-500.0,0.00011886,2]
[346617582,1735127456005,-500.0,0.00011886,2]
[346617583,1735127456014,-500.0,0.00011886,2]
[346617584,1735127456023,-928.86,0.00011886,2]
[346617585,1735127456032,-833.33,0.00011886,2]
[346617586,1735127456041,-500.0,0.00011886,2]
[346617587,1735127456051,-500.0,0.00011886,2]
[346617588,1735127456060,-896.31,0.00011886,2]
[346617589,1735127456070,-2655.7,0.00011886,2]
[346617590,1735127456081,-757.29,0.00011886,2]
[346617591,1735127456090,-500.0,0.00011886,2]
[346617592,1735127456099,-500.0,0.00011886,2]
[346617593,1735127456109,-4923.35,0.00011886,2]
[346617594,1735127456118,-572.89,0.00011886,2]
[346617595,1735127456129,-500.0,0.00011886,2]
[346617596,1735127456139,-578.51481633,0.00011886,2]
[346617597,1735127456148,-525.33,0.00011886,2]
[346617598,1735127456158,-543.83,0.00011886,2]
[346617599,1735127456167,-243.094773,0.00011886,2]
[346617600,1735127456176,-632.78,0.00011886,2]
[346617601,1735127456186,-500.0,0.00011886,2]
[346617602,1735127456195,-500.0,0.00011886,2]
[346617603,1735127456205,-219.681786,0.00011886,2]
[346617604,1735127456215,-1569.97,0.00011886,2]
[346617605,1735127456225,-832.91,0.00011886,2]
[346617606,1735127456234,-500.0,0.00011886,2]
[346617607,1735127456343,-500.0,0.00011886,2]